[Event "Late-Titled-Tuesday-Blitz-April-30-2024"]
[Site "Chess.com"]
[Date "2024.04.30"]
[Round "6"]
[White "Kostukov_Alex"]
[Black "SHIVACalypso"]
[Result "0-1"]
[WhiteElo "2379"]
[BlackElo "2529"]
[TimeControl "180+1"]
[EndTime "15:07:22 PDT"]
[Termination "SHIVACalypso won on time"]

1. g3 {[%clk 0:02:52.3]} 1... Nf6 {[%clk 0:02:48.1]} 2. Bg2 {[%clk 0:02:51.9]}
2... g6 {[%clk 0:02:48.7]} 3. c4 {[%clk 0:02:51.2]} 3... Bg7 {[%clk 0:02:48.6]}
4. Nc3 {[%clk 0:02:51.9]} 4... c5 {[%clk 0:02:48.1]} 5. Nf3 {[%clk 0:02:50.4]}
5... O-O {[%clk 0:02:48.5]} 6. d4 {[%clk 0:02:50.5]} 6... cxd4 {[%clk
0:02:47.7]} 7. Nxd4 {[%clk 0:02:51.4]} 7... Nc6 {[%clk 0:02:48]} 8. c5 {[%clk
0:02:51.7]} 8... Nxd4 {[%clk 0:02:41.6]} 9. Qxd4 {[%clk 0:02:51.4]} 9... Qa5
{[%clk 0:02:31.1]} 10. b4 {[%clk 0:02:46.8]} 10... Qd8 {[%clk 0:02:25.2]} 11.
O-O {[%clk 0:02:40.1]} 11... a5 {[%clk 0:02:14.9]} 12. b5 {[%clk 0:02:33.2]}
12... d6 {[%clk 0:01:42.6]} 13. cxd6 {[%clk 0:02:22.5]} 13... Qxd6 {[%clk
0:01:43.5]} 14. Qxd6 {[%clk 0:02:19.8]} 14... exd6 {[%clk 0:01:44.4]} 15. Ba3
{[%clk 0:02:07.1]} 15... Rd8 {[%clk 0:01:39.9]} 16. Rad1 {[%clk 0:02:03.1]}
16... Bg4 {[%clk 0:01:38]} 17. h3 {[%clk 0:01:59.7]} 17... Be6 {[%clk
0:01:35.4]} 18. Bxd6 {[%clk 0:01:56.1]} 18... Ne8 {[%clk 0:01:15.4]} 19. Be7
{[%clk 0:01:35.3]} 19... Rxd1 {[%clk 0:01:07.6]} 20. Nxd1 {[%clk 0:01:34.8]}
20... Bxa2 {[%clk 0:01:07]} 21. b6 {[%clk 0:01:22.2]} 21... Bf6 {[%clk
0:00:47.5]} 22. Bc5 {[%clk 0:01:06.8]} 22... Rc8 {[%clk 0:00:47.3]} 23. Be3
{[%clk 0:01:02.2]} 23... Nd6 {[%clk 0:00:41.6]} 24. Bf4 {[%clk 0:00:58.4]} 24...
Be7 {[%clk 0:00:32.1]} 25. Ne3 {[%clk 0:00:54.1]} 25... a4 {[%clk 0:00:30.3]}
26. Nd5 {[%clk 0:00:49.7]} 26... Bf8 {[%clk 0:00:25.9]} 27. Be5 {[%clk
0:00:37.8]} 27... Bxd5 {[%clk 0:00:18.3]} 28. Bxd5 {[%clk 0:00:37.7]} 28... Rc5
{[%clk 0:00:18.8]} 29. e4 {[%clk 0:00:19.7]} 29... Nxe4 {[%clk 0:00:19.1]} 30.
Rd1 {[%clk 0:00:15.1]} 30... Nc3 {[%clk 0:00:17.8]} 31. Bxc3 {[%clk 0:00:11.8]}
31... Rxc3 {[%clk 0:00:18.4]} 32. Bxb7 {[%clk 0:00:11.9]} 32... a3 {[%clk
0:00:12.9]} 33. Bd5 {[%clk 0:00:10.6]} 33... Bd6 {[%clk 0:00:07.5]} 34. b7
{[%clk 0:00:10.1]} 34... Kg7 {[%clk 0:00:07.8]} 35. Bxf7 {[%clk 0:00:09.6]}
35... Bc7 {[%clk 0:00:06.7]} 36. Ba2 {[%clk 0:00:08]} 36... Be5 {[%clk
0:00:05.7]} 37. Rb1 {[%clk 0:00:07]} 37... Rc2 {[%clk 0:00:04.9]} 38. Bd5 {[%clk
0:00:04.8]} 38... Rb2 {[%clk 0:00:04.4]} 39. Re1 {[%clk 0:00:03.3]} 39... Bb8
{[%clk 0:00:03.5]} 40. Re8 {[%clk 0:00:03.1]} 40... Bd6 {[%clk 0:00:02.7]} 41.
Rd8 {[%clk 0:00:02.2]} 41... Be5 {[%clk 0:00:02.3]} 42. Ra8 {[%clk 0:00:01.5]}
42... Bd6 {[%clk 0:00:01.1]} 0-1

[Event "Late-Titled-Tuesday-Blitz-April-30-2024"]
[Site "Chess.com"]
[Date "2024.04.30"]
[Round "6"]
[White "HonzaVykouk"]
[Black "mbojan"]
[Result "1-0"]
[WhiteElo "2771"]
[BlackElo "2936"]
[TimeControl "180+1"]
[EndTime "15:07:26 PDT"]
[Termination "HonzaVykouk won on time"]

1. c4 {[%clk 0:03:00.9]} 1... g6 {[%clk 0:02:57.8]} 2. Nc3 {[%clk 0:03:00]} 2...
Bg7 {[%clk 0:02:58.5]} 3. d4 {[%clk 0:03:00.6]} 3... d6 {[%clk 0:02:58.9]} 4. e4
{[%clk 0:03:01]} 4... e5 {[%clk 0:02:57.5]} 5. d5 {[%clk 0:02:58.9]} 5... Nd7
{[%clk 0:02:55.9]} 6. Be3 {[%clk 0:02:57.7]} 6... a5 {[%clk 0:02:52.4]} 7. h4
{[%clk 0:02:53.9]} 7... h5 {[%clk 0:02:52.3]} 8. Nh3 {[%clk 0:02:53]} 8... Bh6
{[%clk 0:02:47.4]} 9. Ng5 {[%clk 0:02:51.4]} 9... b6 {[%clk 0:02:38]} 10. Be2
{[%clk 0:02:50.6]} 10... Nf8 {[%clk 0:02:37.4]} 11. g4 {[%clk 0:02:44]} 11...
hxg4 {[%clk 0:02:19.5]} 12. Bxg4 {[%clk 0:02:43.4]} 12... Bxg5 {[%clk
0:02:17.3]} 13. Bxg5 {[%clk 0:02:26]} 13... Qxg5 {[%clk 0:02:13.5]} 14. Bxc8
{[%clk 0:02:22.6]} 14... Rxc8 {[%clk 0:02:10.7]} 15. Qa4+ {[%clk 0:02:21.7]}
15... Nd7 {[%clk 0:02:06.7]} 16. hxg5 {[%clk 0:02:19.3]} 16... Rxh1+ {[%clk
0:02:05.6]} 17. Ke2 {[%clk 0:02:18.1]} 17... Rxa1 {[%clk 0:02:06.5]} 18. Nd1
{[%clk 0:02:09.3]} 18... Ke7 {[%clk 0:01:54.6]} 19. Qa3 {[%clk 0:01:59.2]} 19...
Nc5 {[%clk 0:01:42.1]} 20. f3 {[%clk 0:01:56.2]} 20... Kd7 {[%clk 0:01:17.5]}
21. b3 {[%clk 0:01:51.1]} 21... Ne7 {[%clk 0:01:16.8]} 22. Qb2 {[%clk
0:01:49.6]} 22... Rxd1 {[%clk 0:01:16.6]} 23. Kxd1 {[%clk 0:01:50.5]} 23... Rh8
{[%clk 0:01:16.9]} 24. Qg2 {[%clk 0:01:47]} 24... Nd3 {[%clk 0:01:09.3]} 25.
Qg4+ {[%clk 0:01:40.5]} 25... Kd8 {[%clk 0:01:09]} 26. Kc2 {[%clk 0:01:41]}
26... Nf4 {[%clk 0:01:08]} 27. Qg3 {[%clk 0:01:23.4]} 27... Rh5 {[%clk
0:01:05.1]} 28. a3 {[%clk 0:01:18.6]} 28... Nh3 {[%clk 0:00:50.3]} 29. b4 {[%clk
0:01:14.5]} 29... axb4 {[%clk 0:00:48.9]} 30. axb4 {[%clk 0:01:15.4]} 30... Nxg5
{[%clk 0:00:45.5]} 31. c5 {[%clk 0:01:16]} 31... bxc5 {[%clk 0:00:45]} 32. bxc5
{[%clk 0:01:16.1]} 32... f6 {[%clk 0:00:40.3]} 33. c6 {[%clk 0:01:14.5]} 33...
f5 {[%clk 0:00:34]} 34. Qf2 {[%clk 0:00:52.8]} 34... Rh3 {[%clk 0:00:27.5]} 35.
Qg2 {[%clk 0:00:49.4]} 35... Rh5 {[%clk 0:00:22.8]} 36. Qf2 {[%clk 0:00:48.9]}
36... Nf7 {[%clk 0:00:10.3]} 37. Qg2 {[%clk 0:00:42.8]} 37... Rh7 {[%clk
0:00:09.5]} 38. Kc3 {[%clk 0:00:37.6]} 38... Ke8 {[%clk 0:00:09.5]} 39. Kc4
{[%clk 0:00:33.2]} 39... Rh4 {[%clk 0:00:07.7]} 40. Kb5 {[%clk 0:00:28.7]} 40...
g5 {[%clk 0:00:04.5]} 41. Ka6 {[%clk 0:00:22]} 41... Kd8 {[%clk 0:00:04.8]} 42.
Kb7 {[%clk 0:00:18.8]} 42... g4 {[%clk 0:00:04.7]} 43. Qa2 {[%clk 0:00:18.6]}
43... Ke8 {[%clk 0:00:02.9]} 44. Qa8+ {[%clk 0:00:18.8]} 44... Nd8+ {[%clk
0:00:02.2]} 45. Kxc7 {[%clk 0:00:19.5]} 45... gxf3 {[%clk 0:00:01.7]} 46. Qxd8+
{[%clk 0:00:19.6]} 46... Kf7 {[%clk 0:00:02.5]} 47. Kd7 {[%clk 0:00:17]} 47...
Ng8 {[%clk 0:00:01.2]} 48. Qxh4 {[%clk 0:00:16.7]} 48... fxe4 {[%clk 0:00:01.4]}
49. Qh7+ {[%clk 0:00:14.9]} 49... Kf8 {[%clk 0:00:01.4]} 50. Qf5+ {[%clk
0:00:12.7]} 50... Kg7 {[%clk 0:00:01.5]} 51. Ke6 {[%clk 0:00:11.7]} 1-0

[Event "Late-Titled-Tuesday-Blitz-April-30-2024"]
[Site "Chess.com"]
[Date "2024.04.30"]
[Round "6"]
[White "SVijayalakshmi"]
[Black "GalaxyRoman"]
[Result "1-0"]
[WhiteElo "2570"]
[BlackElo "2747"]
[TimeControl "180+1"]
[EndTime "15:07:28 PDT"]
[Termination "SVijayalakshmi won by checkmate"]

1. d4 {[%clk 0:03:00.9]} 1... Nf6 {[%clk 0:02:59.2]} 2. Nf3 {[%clk 0:03:01.2]}
2... e6 {[%clk 0:02:59.3]} 3. c4 {[%clk 0:03:01.6]} 3... b6 {[%clk 0:03:00.2]}
4. Nc3 {[%clk 0:03:01.9]} 4... Bb4 {[%clk 0:02:59.7]} 5. g3 {[%clk 0:03:00.8]}
5... Bb7 {[%clk 0:02:57]} 6. Bg2 {[%clk 0:03:00.6]} 6... O-O {[%clk 0:02:57.2]}
7. O-O {[%clk 0:03:00.7]} 7... Bxc3 {[%clk 0:02:56.5]} 8. bxc3 {[%clk
0:03:00.3]} 8... d6 {[%clk 0:02:57.2]} 9. Re1 {[%clk 0:02:58.6]} 9... Ne4 {[%clk
0:02:56.7]} 10. Qc2 {[%clk 0:02:56.8]} 10... f5 {[%clk 0:02:46]} 11. Ng5 {[%clk
0:02:46.6]} 11... Qf6 {[%clk 0:02:45.6]} 12. Rf1 {[%clk 0:02:35.3]} 12... Qg6
{[%clk 0:02:40.2]} 13. a4 {[%clk 0:02:24.9]} 13... Nd7 {[%clk 0:02:33.2]} 14. a5
{[%clk 0:02:23.5]} 14... Ndf6 {[%clk 0:02:29.3]} 15. a6 {[%clk 0:02:20.1]} 15...
Bc6 {[%clk 0:02:29]} 16. Nxe6 {[%clk 0:02:16.7]} 16... Rfc8 {[%clk 0:02:15.7]}
17. f3 {[%clk 0:02:14.7]} 17... Nxg3 {[%clk 0:01:53]} 18. hxg3 {[%clk
0:02:12.3]} 18... Qxg3 {[%clk 0:01:53.9]} 19. Qxf5 {[%clk 0:02:05.1]} 19... Bd7
{[%clk 0:01:49.4]} 20. d5 {[%clk 0:01:59.7]} 20... Re8 {[%clk 0:01:44.4]} 21.
Bf4 {[%clk 0:01:58.4]} 21... Qh4 {[%clk 0:01:44.2]} 22. Bg5 {[%clk 0:01:49]}
22... Qh5 {[%clk 0:01:44.1]} 23. Qf4 {[%clk 0:01:39.4]} 23... Bxe6 {[%clk
0:01:37.9]} 24. Bxf6 {[%clk 0:01:33.5]} 24... Bf7 {[%clk 0:01:30.8]} 25. Bd4
{[%clk 0:01:30.5]} 25... Rxe2 {[%clk 0:01:28.4]} 26. Qg3 {[%clk 0:01:29.2]}
26... Bg6 {[%clk 0:01:25.2]} 27. Rae1 {[%clk 0:01:28.8]} 27... Ree8 {[%clk
0:01:09]} 28. Bh3 {[%clk 0:01:27.4]} 28... Kh8 {[%clk 0:01:05.2]} 29. Be6 {[%clk
0:01:25.7]} 29... Rf8 {[%clk 0:00:59.9]} 30. Kg2 {[%clk 0:01:25.5]} 30... Qh6
{[%clk 0:00:58.5]} 31. Rh1 {[%clk 0:01:24.9]} 31... Qd2+ {[%clk 0:00:58.4]} 32.
Qf2 {[%clk 0:01:17.4]} 32... Qg5+ {[%clk 0:00:58.2]} 33. Qg3 {[%clk 0:01:17.1]}
33... Qd2+ {[%clk 0:00:57.9]} 34. Kg1 {[%clk 0:01:16.7]} 34... Rae8 {[%clk
0:00:32.3]} 35. Rf1 {[%clk 0:01:12.2]} 35... Qd3 {[%clk 0:00:24.4]} 36. Kg2
{[%clk 0:01:06]} 36... Re7 {[%clk 0:00:20.4]} 37. Rf2 {[%clk 0:01:04]} 37... Bf5
{[%clk 0:00:11.6]} 38. Bxf5 {[%clk 0:01:00.3]} 38... Qxf5 {[%clk 0:00:12.5]} 39.
Rh4 {[%clk 0:00:58.1]} 39... Ref7 {[%clk 0:00:09.7]} 40. Rg4 {[%clk 0:00:57.1]}
40... Rg8 {[%clk 0:00:07.2]} 41. Re2 {[%clk 0:00:57.1]} 41... Qd3 {[%clk
0:00:06.3]} 42. Re6 {[%clk 0:00:53.3]} 42... Qxc4 {[%clk 0:00:02.4]} 43. Rh6
{[%clk 0:00:49.5]} 43... Qe2+ {[%clk 0:00:01.8]} 44. Bf2 {[%clk 0:00:47]} 44...
Qd3 {[%clk 0:00:01.2]} 45. Rh3 {[%clk 0:00:44.1]} 45... Qf5 {[%clk 0:00:01.8]}
46. Bd4 {[%clk 0:00:43.3]} 46... Rgf8 {[%clk 0:00:00.9]} 47. Rxg7 {[%clk
0:00:40.3]} 47... Rf6 {[%clk 0:00:01.2]} 48. Rgxh7+ {[%clk 0:00:39.9]} 48...
Qxh7 {[%clk 0:00:01.1]} 49. Rxh7+ {[%clk 0:00:40.5]} 49... Kxh7 {[%clk 0:00:02]}
50. Qh4+ {[%clk 0:00:40.9]} 50... Kg7 {[%clk 0:00:02.3]} 51. Qg5+ {[%clk
0:00:41.4]} 51... Kh7 {[%clk 0:00:02.2]} 52. Bxf6 {[%clk 0:00:40.8]} 52... Rg8
{[%clk 0:00:03.1]} 53. Qxg8+ {[%clk 0:00:41.2]} 53... Kxg8 {[%clk 0:00:04]} 54.
Bd8 {[%clk 0:00:41.7]} 54... Kf7 {[%clk 0:00:04.9]} 55. Bxc7 {[%clk 0:00:42]}
55... Ke7 {[%clk 0:00:05.8]} 56. Bxb6 {[%clk 0:00:42.4]} 56... Kd7 {[%clk
0:00:06.7]} 57. Bxa7 {[%clk 0:00:42.7]} 57... Kc7 {[%clk 0:00:07.3]} 58. Bd4
{[%clk 0:00:43.5]} 58... Kb8 {[%clk 0:00:08.2]} 59. a7+ {[%clk 0:00:44]} 59...
Ka8 {[%clk 0:00:09.1]} 60. f4 {[%clk 0:00:44.6]} 60... Kb7 {[%clk 0:00:10]} 61.
f5 {[%clk 0:00:45.3]} 61... Ka8 {[%clk 0:00:10.7]} 62. f6 {[%clk 0:00:46.2]}
62... Kb7 {[%clk 0:00:11.6]} 63. f7 {[%clk 0:00:46.7]} 63... Ka6 {[%clk
0:00:12.5]} 64. a8=Q+ {[%clk 0:00:46.1]} 64... Kb5 {[%clk 0:00:13.4]} 65. Qc6+
{[%clk 0:00:46.2]} 65... Ka5 {[%clk 0:00:13.1]} 66. Qb6+ {[%clk 0:00:45.2]}
66... Ka4 {[%clk 0:00:13.5]} 67. Qb4# {[%clk 0:00:45.7]} 1-0

[Event "Late-Titled-Tuesday-Blitz-April-30-2024"]
[Site "Chess.com"]
[Date "2024.04.30"]
[Round "6"]
[White "Big_Finky"]
[Black "maurovargas01"]
[Result "1-0"]
[WhiteElo "2258"]
[BlackElo "1952"]
[TimeControl "180+1"]
[EndTime "15:07:29 PDT"]
[Termination "Big_Finky won on time"]

1. d4 {[%clk 0:03:00.9]} 1... Nf6 {[%clk 0:02:59.6]} 2. c4 {[%clk 0:03:00.1]}
2... d6 {[%clk 0:02:59.8]} 3. g3 {[%clk 0:03:00.4]} 3... e6 {[%clk 0:02:58.5]}
4. Bg2 {[%clk 0:03:01]} 4... c6 {[%clk 0:02:58.3]} 5. Nc3 {[%clk 0:03:01.6]}
5... d5 {[%clk 0:02:51]} 6. Nf3 {[%clk 0:03:01.2]} 6... Bb4 {[%clk 0:02:50.4]}
7. O-O {[%clk 0:03:00.1]} 7... O-O {[%clk 0:02:50.3]} 8. Qb3 {[%clk 0:02:56.5]}
8... Ba5 {[%clk 0:02:48.8]} 9. Bf4 {[%clk 0:02:55.2]} 9... Nbd7 {[%clk
0:02:46.2]} 10. Ne5 {[%clk 0:02:45.1]} 10... Nh5 {[%clk 0:02:44.4]} 11. Nxd7
{[%clk 0:02:33.2]} 11... Qxd7 {[%clk 0:02:39.4]} 12. Bd2 {[%clk 0:02:28.4]}
12... Bc7 {[%clk 0:02:37.9]} 13. Rad1 {[%clk 0:02:22.1]} 13... Nf6 {[%clk
0:02:35.8]} 14. Bg5 {[%clk 0:02:11.7]} 14... Bd8 {[%clk 0:02:27.6]} 15. Bf4
{[%clk 0:01:47.1]} 15... Nh5 {[%clk 0:02:19.7]} 16. Bc1 {[%clk 0:01:46.1]} 16...
f5 {[%clk 0:02:15.6]} 17. cxd5 {[%clk 0:01:34.3]} 17... exd5 {[%clk 0:02:14.4]}
18. e4 {[%clk 0:01:31.6]} 18... fxe4 {[%clk 0:02:11.9]} 19. Nxe4 {[%clk
0:01:32.5]} 19... Kh8 {[%clk 0:02:10.3]} 20. Nc5 {[%clk 0:01:29.9]} 20... Qf7
{[%clk 0:02:01.3]} 21. Nd3 {[%clk 0:01:21.2]} 21... Bb6 {[%clk 0:01:51.6]} 22.
Ne5 {[%clk 0:01:21.3]} 22... Qe8 {[%clk 0:01:47.6]} 23. Rfe1 {[%clk 0:01:16.5]}
23... Nf6 {[%clk 0:01:45.4]} 24. Nc4 {[%clk 0:01:02.2]} 24... Qd8 {[%clk
0:01:37.1]} 25. Nxb6 {[%clk 0:00:39.4]} 25... axb6 {[%clk 0:01:33.3]} 26. a4
{[%clk 0:00:39.4]} 26... Bg4 {[%clk 0:01:28.2]} 27. Rd3 {[%clk 0:00:35]} 27...
Bf5 {[%clk 0:01:26.7]} 28. Rde3 {[%clk 0:00:34]} 28... Ng4 {[%clk 0:01:10.1]}
29. R3e2 {[%clk 0:00:11.7]} 29... Bg6 {[%clk 0:00:42.2]} 30. h3 {[%clk
0:00:10.5]} 30... Nf6 {[%clk 0:00:38.3]} 31. Re7 {[%clk 0:00:11.2]} 31... Ne4
{[%clk 0:00:35.9]} 32. Rxb7 {[%clk 0:00:10.7]} 32... Nxf2 {[%clk 0:00:27.8]} 33.
Rxb6 {[%clk 0:00:05.3]} 33... Qc8 {[%clk 0:00:20.4]} 34. Bf4 {[%clk 0:00:03.9]}
34... Nxh3+ {[%clk 0:00:19.5]} 35. Bxh3 {[%clk 0:00:02.8]} 35... Qxh3 {[%clk
0:00:19.5]} 36. Rxc6 {[%clk 0:00:03.7]} 36... Be4 {[%clk 0:00:18.7]} 37. Rxe4
{[%clk 0:00:02.2]} 37... dxe4 {[%clk 0:00:18.6]} 38. Qe3 {[%clk 0:00:01.6]}
38... Rae8 {[%clk 0:00:18.1]} 39. d5 {[%clk 0:00:02]} 39... Qd7 {[%clk
0:00:16.1]} 40. Rd6 {[%clk 0:00:01.2]} 40... Qxa4 {[%clk 0:00:14.3]} 41. Qc3
{[%clk 0:00:00.9]} 41... Qd1+ {[%clk 0:00:13.1]} 42. Kh2 {[%clk 0:00:01.7]}
42... Qh5+ {[%clk 0:00:12.5]} 43. Kg2 {[%clk 0:00:01.8]} 43... Qe2+ {[%clk
0:00:10.5]} 44. Kg1 {[%clk 0:00:01.8]} 44... Ra8 {[%clk 0:00:03]} 45. Rd7 {[%clk
0:00:02.1]} 45... Ra1+ {[%clk 0:00:02.9]} 46. Bc1 {[%clk 0:00:02.8]} 46... Qe1+
{[%clk 0:00:02]} 47. Qxe1 {[%clk 0:00:02.8]} 1-0

[Event "Late-Titled-Tuesday-Blitz-April-30-2024"]
[Site "Chess.com"]
[Date "2024.04.30"]
[Round "6"]
[White "ahmedkandiliii"]
[Black "jaramsdal"]
[Result "1-0"]
[WhiteElo "2616"]
[BlackElo "2395"]
[TimeControl "180+1"]
[EndTime "15:07:34 PDT"]
[Termination "ahmedkandiliii won by resignation"]

1. Nf3 {[%clk 0:03:00.5]} 1... Nf6 {[%clk 0:02:59.8]} 2. g3 {[%clk 0:03:00.5]}
2... g6 {[%clk 0:03:00.2]} 3. Bg2 {[%clk 0:03:01.4]} 3... Bg7 {[%clk 0:03:00.8]}
4. O-O {[%clk 0:03:02.3]} 4... O-O {[%clk 0:03:01.4]} 5. c4 {[%clk 0:03:02]}
5... c6 {[%clk 0:03:01.3]} 6. d4 {[%clk 0:02:57.8]} 6... d5 {[%clk 0:03:01.6]}
7. Nc3 {[%clk 0:02:58.3]} 7... dxc4 {[%clk 0:02:59.8]} 8. Qc2 {[%clk 0:02:52.5]}
8... Nd5 {[%clk 0:02:48.7]} 9. e4 {[%clk 0:02:47.7]} 9... Nb4 {[%clk 0:02:47.6]}
10. Qa4 {[%clk 0:02:44.3]} 10... a5 {[%clk 0:02:44.8]} 11. a3 {[%clk 0:02:38.3]}
11... b5 {[%clk 0:02:42.5]} 12. Qd1 {[%clk 0:02:37.3]} 12... Nd3 {[%clk
0:02:39.8]} 13. d5 {[%clk 0:02:16.7]} 13... Bxc3 {[%clk 0:02:25.6]} 14. bxc3
{[%clk 0:02:17.6]} 14... cxd5 {[%clk 0:02:26.5]} 15. exd5 {[%clk 0:02:17.6]}
15... Bb7 {[%clk 0:02:27]} 16. Bh6 {[%clk 0:02:16.5]} 16... Bxd5 {[%clk
0:02:17.9]} 17. Bxf8 {[%clk 0:02:12]} 17... Qxf8 {[%clk 0:02:18.8]} 18. Rb1
{[%clk 0:02:10.5]} 18... Qe8 {[%clk 0:02:09.1]} 19. Nd4 {[%clk 0:02:10.4]} 19...
Bxg2 {[%clk 0:02:07.3]} 20. Kxg2 {[%clk 0:02:11.3]} 20... b4 {[%clk 0:01:43.6]}
21. Qf3 {[%clk 0:02:09]} 21... Na6 {[%clk 0:01:30]} 22. axb4 {[%clk 0:01:56.5]}
22... axb4 {[%clk 0:01:30.9]} 23. cxb4 {[%clk 0:01:53.4]} 23... Naxb4 {[%clk
0:01:31.8]} 24. Ra1 {[%clk 0:01:42.2]} 24... Rd8 {[%clk 0:01:29.7]} 25. Ne2
{[%clk 0:01:32.7]} 25... Nc2 {[%clk 0:01:24.6]} 26. Rab1 {[%clk 0:01:23.7]}
26... e5 {[%clk 0:01:24.6]} 27. Nc3 {[%clk 0:01:20.7]} 27... Nd4 {[%clk
0:01:21]} 28. Qe3 {[%clk 0:00:59.7]} 28... Qc6+ {[%clk 0:01:18.2]} 29. Qe4
{[%clk 0:00:56]} 29... Qxe4+ {[%clk 0:01:03.4]} 30. Nxe4 {[%clk 0:00:56.9]}
30... f5 {[%clk 0:01:02.5]} 31. Nc3 {[%clk 0:00:54.4]} 31... e4 {[%clk
0:00:59.4]} 32. Rb7 {[%clk 0:00:53.7]} 32... Ra8 {[%clk 0:00:46.9]} 33. Rfb1
{[%clk 0:00:48]} 33... Nb3 {[%clk 0:00:32.8]} 34. Rc7 {[%clk 0:00:43.8]} 34...
h5 {[%clk 0:00:26.4]} 35. Nd5 {[%clk 0:00:26.4]} 35... h4 {[%clk 0:00:21.1]} 36.
Ne3 {[%clk 0:00:24.8]} 36... h3+ {[%clk 0:00:18.8]} 37. Kxh3 {[%clk 0:00:22.3]}
37... Nxf2+ {[%clk 0:00:19.1]} 38. Kg2 {[%clk 0:00:22.8]} 38... Nd3 {[%clk
0:00:19.6]} 39. Nxc4 {[%clk 0:00:21.9]} 39... Ra2+ {[%clk 0:00:18.6]} 40. Kg1
{[%clk 0:00:11.6]} 40... Ra1 {[%clk 0:00:12.2]} 41. Rxa1 {[%clk 0:00:11.1]}
41... Nxa1 {[%clk 0:00:13.1]} 42. Ne3 {[%clk 0:00:07.6]} 42... Nb3 {[%clk
0:00:13.2]} 43. Nd5 {[%clk 0:00:07.7]} 43... Nd4 {[%clk 0:00:10.6]} 44. Kg2
{[%clk 0:00:07.7]} 44... Ne6 {[%clk 0:00:08.9]} 45. Re7 {[%clk 0:00:07.3]} 45...
Nd4 {[%clk 0:00:06.6]} 46. Rd7 {[%clk 0:00:07.6]} 46... Ne6 {[%clk 0:00:05.7]}
47. Ne3 {[%clk 0:00:06]} 47... Nd4 {[%clk 0:00:05.5]} 48. Rxd4 {[%clk
0:00:05.9]} 1-0

[Event "Late-Titled-Tuesday-Blitz-April-30-2024"]
[Site "Chess.com"]
[Date "2024.04.30"]
[Round "6"]
[White "merinasian"]
[Black "ab-lsv"]
[Result "0-1"]
[WhiteElo "2595"]
[BlackElo "2387"]
[TimeControl "180+1"]
[EndTime "15:07:35 PDT"]
[Termination "ab-lsv won on time"]

1. d4 {[%clk 0:03:00.9]} 1... d5 {[%clk 0:02:59.7]} 2. Nf3 {[%clk 0:03:00.5]}
2... Nf6 {[%clk 0:02:59.7]} 3. e3 {[%clk 0:03:00.7]} 3... c5 {[%clk 0:02:56.3]}
4. c4 {[%clk 0:03:01]} 4... cxd4 {[%clk 0:02:53.3]} 5. exd4 {[%clk 0:03:00.2]}
5... Nc6 {[%clk 0:02:53.4]} 6. Nc3 {[%clk 0:03:00.4]} 6... a6 {[%clk 0:02:52.9]}
7. cxd5 {[%clk 0:02:55.1]} 7... Nxd5 {[%clk 0:02:53.8]} 8. Bc4 {[%clk
0:02:54.7]} 8... Be6 {[%clk 0:02:51.8]} 9. Qe2 {[%clk 0:01:38.5]} 9... Nxc3
{[%clk 0:02:30.1]} 10. bxc3 {[%clk 0:01:38]} 10... Bxc4 {[%clk 0:02:30.3]} 11.
Qxc4 {[%clk 0:01:38.2]} 11... e6 {[%clk 0:02:30.8]} 12. Rb1 {[%clk 0:01:33.3]}
12... Qd7 {[%clk 0:02:12.7]} 13. Qb3 {[%clk 0:01:29.5]} 13... b5 {[%clk
0:02:08.9]} 14. a4 {[%clk 0:01:11.8]} 14... Na5 {[%clk 0:01:58.7]} 15. Qa2
{[%clk 0:01:03.3]} 15... bxa4 {[%clk 0:01:56.1]} 16. O-O {[%clk 0:01:01.6]}
16... Bd6 {[%clk 0:01:53.7]} 17. d5 {[%clk 0:00:56.5]} 17... O-O {[%clk
0:01:30.3]} 18. dxe6 {[%clk 0:00:55.1]} 18... fxe6 {[%clk 0:01:29.3]} 19. Nd4
{[%clk 0:00:54.2]} 19... Rae8 {[%clk 0:01:21.1]} 20. Rb6 {[%clk 0:00:52.9]}
20... Bxh2+ {[%clk 0:01:05]} 21. Kxh2 {[%clk 0:00:52]} 21... Qc7+ {[%clk
0:01:04.7]} 22. Kg1 {[%clk 0:00:50.7]} 22... Qxb6 {[%clk 0:01:04.8]} 23. Qxa4
{[%clk 0:00:48.6]} 23... e5 {[%clk 0:00:56.5]} 24. Ne2 {[%clk 0:00:48]} 24...
Kh8 {[%clk 0:00:56.2]} 25. Ng3 {[%clk 0:00:46.9]} 25... Nc6 {[%clk 0:00:53.1]}
26. Be3 {[%clk 0:00:46.7]} 26... Qb5 {[%clk 0:00:53.1]} 27. Qc2 {[%clk
0:00:44.7]} 27... Rd8 {[%clk 0:00:48.9]} 28. Rb1 {[%clk 0:00:44.4]} 28... Qd3
{[%clk 0:00:46.8]} 29. Qa2 {[%clk 0:00:43.8]} 29... Rb8 {[%clk 0:00:42.1]} 30.
Rc1 {[%clk 0:00:39.4]} 30... a5 {[%clk 0:00:35.6]} 31. Qe6 {[%clk 0:00:39]}
31... Rbc8 {[%clk 0:00:30.8]} 32. Qg4 {[%clk 0:00:38]} 32... Qg6 {[%clk
0:00:27]} 33. Qa4 {[%clk 0:00:36.3]} 33... Qd6 {[%clk 0:00:21.5]} 34. Ne4 {[%clk
0:00:34.6]} 34... Qd5 {[%clk 0:00:17.5]} 35. Ng5 {[%clk 0:00:32.8]} 35... h6
{[%clk 0:00:13.2]} 36. Nf3 {[%clk 0:00:27.1]} 36... Rxf3 {[%clk 0:00:11.7]} 37.
gxf3 {[%clk 0:00:27]} 37... Qxf3 {[%clk 0:00:12.1]} 38. Qh4 {[%clk 0:00:23.5]}
38... Rf8 {[%clk 0:00:11]} 39. c4 {[%clk 0:00:20]} 39... Rf6 {[%clk 0:00:10.7]}
40. Kf1 {[%clk 0:00:18.3]} 40... a4 {[%clk 0:00:09.7]} 41. Ke1 {[%clk
0:00:07.7]} 41... a3 {[%clk 0:00:09.6]} 42. Ra1 {[%clk 0:00:07.6]} 42... Nb4
{[%clk 0:00:07.4]} 43. Rc1 {[%clk 0:00:02.1]} 43... Nd3+ {[%clk 0:00:07.1]} 44.
Kd2 {[%clk 0:00:01.9]} 44... Nxc1 {[%clk 0:00:07.4]} 45. Kxc1 {[%clk 0:00:02.8]}
45... a2 {[%clk 0:00:08]} 46. Kb2 {[%clk 0:00:03]} 46... Qe2+ {[%clk 0:00:07.7]}
47. Ka1 {[%clk 0:00:02.9]} 47... Rd6 {[%clk 0:00:06.9]} 0-1